bitfinex/quotes_BTCUSD_20250902
["timestamp","ask_amount","ask_price","bid_price","bid_amount"]
[1756780022272,0.817105,109700.0,109690.0,0.18751202]
[1756780022485,1.1538204,109700.0,109690.0,0.27942801]
[1756780022702,1.1538204,109700.0,109690.0,0.09709599]
[1756780022904,1.1548204,109700.0,109690.0,0.09709599]
[1756780027222,1.44247533,109700.0,109690.0,0.09709599]
[1756780027421,0.99377533,109700.0,109690.0,0.09709599]
[1756780028101,0.7061204,109700.0,109690.0,0.27942801]
[1756780030019,0.368405,109700.0,109690.0,0.27942801]
[1756780030217,0.341,109700.0,109690.0,0.56708294]
[1756780030422,0.341,109700.0,109690.0,0.27942801]
[1756780034460,0.5233154,109700.0,109690.0,0.27942801]
[1756780035770,0.341,109700.0,109690.0,0.27942801]
[1756780037565,0.341,109700.0,109690.0,0.56705673]
[1756780041588,0.34,109700.0,109690.0,0.56705673]
[1756780042673,0.027403,109710.0,109700.0,0.1823154]
[1756780042874,0.34,109710.0,109700.0,0.72023011]
[1756780043074,0.34,109710.0,109700.0,0.27926139]
[1756780043309,0.34,109710.0,109700.0,0.43260139]
[1756780043683,0.62762872,109710.0,109700.0,0.43458139]
[1756780044074,0.8099275,109710.0,109700.0,0.27926139]
[1756780044275,0.8099275,109710.0,109700.0,0.43260139]
[1756780044491,0.62762872,109710.0,109700.0,0.43260139]
[1756780044714,0.62762872,109710.0,109700.0,0.43458139]
[1756780046661,0.62762872,109710.0,109700.0,0.27926139]
[1756780046866,0.62762872,109710.0,109700.0,0.43458139]
[1756780049497,0.34,109710.0,109700.0,0.43458139]
[1756780050151,0.34,109710.0,109700.0,0.27926139]
[1756780050361,0.52229878,109710.0,109700.0,0.43454139]
[1756780050570,0.8099275,109710.0,109700.0,0.43454139]
[1756780051784,0.62762872,109710.0,109700.0,0.09496599]
[1756780052039,0.62762872,109710.0,109700.0,0.72217011]
[1756780052040,0.34,109710.0,109700.0,0.72217011]
[1756780052259,0.34,109710.0,109700.0,0.43454139]
[1756780052484,0.8099275,109710.0,109700.0,0.43454139]
[1756780052703,0.62762872,109710.0,109700.0,0.43454139]
[1756780053024,0.34,109710.0,109700.0,0.43454139]
[1756780054635,0.34,109710.0,109700.0,0.72217011]
[1756780059708,0.34,109720.0,109710.0,0.18228324]
[1756780059905,0.34,109720.0,109710.0,0.27943923]
[1756780061358,0.341,109720.0,109710.0,0.27943923]
[1756780061850,0.341,109720.0,109710.0,0.56706795]
[1756780062089,0.341,109720.0,109710.0,0.27943923]
[1756780062485,0.341,109720.0,109710.0,0.56706795]
[1756780063233,0.341,109720.0,109710.0,0.58800677]
[1756780063452,0.341,109720.0,109710.0,0.74320677]
[1756780064638,0.001,109720.0,109710.0,0.81328677]
[1756780064847,0.3402,109740.0,109730.0,0.18226556]
[1756780065064,0.52244895,109740.0,109730.0,0.27732155]
[1756780065281,0.84719018,109740.0,109730.0,0.43252155]
[1756780065489,0.55956146,109740.0,109730.0,0.43252155]
[1756780065698,0.55956146,109740.0,109730.0,0.27732155]
[1756780065911,0.37731251,109740.0,109730.0,0.43252155]
[1756780066124,0.37731251,109740.0,109730.0,0.43475033]
[1756780066769,0.37731251,109740.0,109730.0,0.72237905]
[1756780067427,0.37731251,109740.0,109730.0,0.43475033]
[1756780067664,0.37731251,109740.0,109730.0,0.72237905]
[1756780068283,0.37831251,109740.0,109730.0,0.72237905]
[1756780068886,0.03811251,109740.0,109730.0,0.72237905]
[1756780069785,0.22036146,109740.0,109730.0,0.56717905]
[1756780069997,0.03811251,109740.0,109730.0,0.72233905]
[1756780071271,0.03811251,109740.0,109730.0,0.43471033]
[1756780074215,0.001,109740.0,109730.0,0.72233905]
[1756780075140,0.001,109740.0,109730.0,0.43471033]
[1756780075339,0.0002,109750.0,109740.0,0.18224895]
[1756780075515,0.0002,109750.0,109740.0,0.56179366]
[1756780075723,0.0002,109750.0,109740.0,0.56703366]
[1756780076134,0.18243234,109750.0,109740.0,0.72215366]
[1756780076536,0.18243234,109750.0,109740.0,0.43452494]
[1756780076980,0.0002,109750.0,109740.0,0.43452494]
[1756780077418,0.18243234,109750.0,109740.0,0.43452494]
[1756780077624,0.0002,109750.0,109740.0,0.8756012]
[1756780077832,0.0002,109750.0,109740.0,0.58797248]
[1756780078038,0.0002,109750.0,109740.0,0.74309248]
[1756780079403,0.0002,109750.0,109740.0,0.58797248]
[1756780079616,0.0002,109750.0,109740.0,0.74309248]
[1756780080417,0.0002,109750.0,109740.0,0.8756012]
[1756780080596,0.0002,109750.0,109740.0,1.0580652]
[1756780080859,0.0002,109750.0,109740.0,0.32772776]
[1756780081057,0.0002,109750.0,109740.0,0.77043648]
[1756780081491,0.0002,109750.0,109740.0,0.77143648]
[1756780081694,0.0002,109750.0,109740.0,1.0600652]
[1756780082855,0.0002,109750.0,109740.0,1.0590652]
[1756780083057,0.0002,109750.0,109740.0,1.0610652]
[1756780083479,0.0002,109750.0,109740.0,1.0600652]
[1756780083612,0.0002,109750.0,109740.0,1.0620652]
[1756780084424,0.0002,109750.0,109740.0,0.48680776]
[1756780084634,0.0002,109750.0,109740.0,1.0620652]
[1756780089946,0.0002,109750.0,109740.0,3.0620652]
[1756780094142,0.0002,109750.0,109740.0,3.0619852]
[1756780097167,0.0002,109750.0,109740.0,2.9069852]
[1756780097372,0.0002,109750.0,109740.0,3.0619852]
[1756780097550,0.0002,109750.0,109740.0,3.06118414]
[1756780104193,0.32372048,109790.0,109770.0,0.18118504]
[1756780104429,0.51444875,109790.0,109780.0,0.33714254]
[1756780104631,0.48706475,109790.0,109780.0,0.33714254]
[1756780104841,0.51444575,109790.0,109780.0,0.15496]
[1756780105489,0.22921756,109790.0,109780.0,0.15508878]
[1756780105703,0.51644575,109790.0,109780.0,0.15508878]
[1756780106196,0.51444575,109790.0,109780.0,0.15508878]
[1756780106427,0.53611558,109790.0,109780.0,0.15508878]
[1756780107361,0.53611558,109790.0,109780.0,0.15504878]
[1756780107579,0.53611558,109790.0,109780.0,0.00012878]
[1756780107789,0.53611558,109790.0,109780.0,0.15504878]
[1756780108254,0.56492273,109790.0,109780.0,0.15504878]
[1756780108455,0.56592273,109790.0,109780.0,0.15504878]
[1756780108861,0.27869454,109790.0,109780.0,0.15504878]
[1756780109073,0.56592273,109790.0,109780.0,0.15504878]
[1756780109274,0.27869454,109790.0,109780.0,0.00012878]
[1756780109481,0.56592273,109790.0,109780.0,0.00012878]
[1756780110724,0.72084273,109790.0,109780.0,0.00012878]
[1756780112514,1.06084273,109790.0,109780.0,0.00012878]
[1756780112743,1.10191739,109790.0,109780.0,0.00012878]
[1756780114068,1.12643808,109790.0,109780.0,0.00012878]
[1756780115796,1.3535404,109790.0,109780.0,0.00012878]
[1756780117199,1.44545639,109790.0,109780.0,0.00012878]
[1756780117404,1.47815064,109790.0,109780.0,0.00012878]
[1756780117915,1.77178571,109790.0,109780.0,0.00012878]
[1756780118116,1.54095291,109790.0,109780.0,0.00012878]
[1756780118337,1.71505759,109790.0,109780.0,0.00012878]
[1756780118977,1.72416588,109790.0,109780.0,0.00012878]
[1756780119191,6.72416588,109790.0,109780.0,0.00012878]
[1756780119394,6.63897955,109790.0,109780.0,1e-08]
[1756780119606,0.34,109760.0,109750.0,0.07354631]
[1756780119799,1.27118195,109760.0,109750.0,0.07367547]
[1756780120246,0.98395376,109760.0,109750.0,0.07367547]
[1756780120460,0.82911376,109760.0,109750.0,0.07367547]
[1756780120598,0.98395376,109760.0,109750.0,0.00012916]
[1756780120803,0.98395376,109760.0,109750.0,0.00212916]
[1756780120804,1.01134776,109760.0,109750.0,0.00212916]
[1756780121005,1.01134776,109760.0,109750.0,0.00012916]
[1756780121327,1.01334776,109760.0,109750.0,0.00012916]
[1756780121759,1.01334776,109760.0,109750.0,0.00112916]
[1756780122218,1.01334776,109760.0,109750.0,0.00012916]
[1756780122402,1.01434776,109760.0,109750.0,0.00012916]
[1756780123013,1.41746143,109760.0,109750.0,0.00012916]
[1756780123208,1.26262143,109760.0,109750.0,0.00012916]
[1756780123416,1.41746143,109760.0,109750.0,0.00012916]
[1756780128460,6.41746143,109760.0,109750.0,0.00012916]
[1756780128669,6.44204708,109760.0,109750.0,0.00012916]
[1756780129294,6.28720708,109760.0,109750.0,0.00012916]
[1756780129505,1.10626375,109760.0,109750.0,0.00330916]
[1756780129706,1.10626375,109760.0,109750.0,0.00012916]
[1756780130528,0.95142375,109760.0,109750.0,0.00012916]
[1756780130731,1.10626375,109760.0,109750.0,0.00330916]
[1756780131224,1.10626375,109760.0,109750.0,0.00012916]
[1756780131880,0.52223234,109750.0,109740.0,1.97820362]
[1756780132080,0.80946053,109750.0,109740.0,1.98039473]
[1756780132484,0.83685553,109750.0,109740.0,1.98039473]
[1756780133682,1.28655553,109750.0,109740.0,1.98039473]
[1756780134540,1.57378372,109750.0,109740.0,1.98039473]
[1756780135114,1.66569971,109750.0,109740.0,1.97516473]
[1756780135303,1.77934906,109750.0,109740.0,1.97516473]
[1756780138910,1.91017957,109750.0,109740.0,1.97516473]
[1756780139623,1.46147957,109750.0,109740.0,1.97516473]
[1756780139767,1.30667957,109750.0,109740.0,1.97516473]
[1756780139969,1.46147957,109750.0,109740.0,1.97516473]
[1756780140207,1.46147957,109750.0,109740.0,1.97834473]
[1756780140383,1.46147957,109750.0,109740.0,1.98039473]
[1756780140795,0.73222319,109750.0,109740.0,1.98039473]
[1756780140998,0.92753539,109750.0,109740.0,1.98039473]
[1756780141379,1.21476358,109750.0,109740.0,1.98039473]
[1756780141585,1.36956358,109750.0,109740.0,1.98039473]
[1756780142372,1.08233539,109750.0,109740.0,1.98039473]
[1756780142571,1.36956358,109750.0,109740.0,1.98039473]
[1756780144558,1.4030673,109750.0,109740.0,1.98039473]
[1756780144831,1.36956358,109750.0,109740.0,1.98039473]
[1756780145322,1.37809185,109750.0,109740.0,1.98039473]
[1756780145838,1.48706525,109750.0,109740.0,1.97516473]
[1756780146063,6.53562039,109750.0,109740.0,1.97516473]
[1756780146311,6.80466025,109750.0,109740.0,1.4525488]
[1756780146533,6.92114256,109750.0,109740.0,1.43769927]
[1756780147194,6.63391437,109750.0,109740.0,1.43769927]
[1756780147424,6.94208138,109750.0,109740.0,1.43769927]
[1756780147609,6.91651506,109750.0,109740.0,1.43769927]
[1756780147848,6.91751506,109750.0,109740.0,1.43769927]
[1756780148266,6.91651506,109750.0,109740.0,1.43769927]
[1756780148471,6.95120931,109750.0,109740.0,1.43769927]
[1756780148915,6.95220931,109750.0,109740.0,1.43769927]
[1756780149119,6.9569755,109750.0,109740.0,1.43769927]
[1756780149325,6.92428125,109750.0,109740.0,1.43769927]
[1756780149537,6.9569755,109750.0,109740.0,1.43769927]
[1756780149738,6.66974731,109750.0,109740.0,1.43769927]
[1756780150769,6.51494731,109750.0,109740.0,1.43769927]
[1756780150963,6.57779132,109750.0,109740.0,1.43769927]
[1756780153286,6.5692837,109750.0,109740.0,1.43769927]
[1756780153490,6.57788727,109750.0,109740.0,1.43769927]
[1756780155848,6.55694845,109750.0,109740.0,1.44069927]
[1756780156483,6.57329558,109750.0,109740.0,1.44069927]
[1756780156699,6.66521157,109750.0,109740.0,1.44069927]
[1756780157642,6.79881808,109750.0,109740.0,1.44069927]
[1756780157862,6.95357808,109750.0,109740.0,1.44069927]
[1756780158095,6.79881808,109750.0,109740.0,1.44069927]
[1756780158315,6.95357808,109750.0,109740.0,1.44069927]
[1756780158974,6.66597045,109750.0,109740.0,1.44069927]
[1756780159271,6.41929446,109750.0,109740.0,1.44272927]
[1756780159540,6.58286602,109750.0,109740.0,1.44272927]
[1756780161345,6.58286932,109750.0,109740.0,1.44272927]
[1756780163016,6.55008827,109750.0,109740.0,1.44272927]
[1756780163660,6.53301679,109750.0,109740.0,1.44272927]
[1756780163866,6.55009575,109750.0,109740.0,1.44272927]
[1756780164111,6.64201174,109750.0,109740.0,1.44272927]
[1756780164352,6.66598123,109750.0,109740.0,1.43769927]
[1756780164556,6.66598123,109750.0,109740.0,1.44069927]
[1756780165406,6.95358886,109750.0,109740.0,1.44069927]
[1756780165834,6.66598123,109750.0,109740.0,1.44272927]
[1756780166267,6.69877477,109750.0,109740.0,1.44272927]
[1756780166479,1.69877477,109750.0,109740.0,1.44272927]
[1756780168030,1.69868365,109750.0,109740.0,1.44272927]
[1756780168235,1.60676766,109750.0,109740.0,1.44272927]
[1756780171412,1.60676766,109750.0,109740.0,1.44069927]
[1756780171611,1.89437529,109750.0,109740.0,1.44069927]
[1756780171839,1.60676766,109750.0,109740.0,1.44069927]
[1756780172625,1.60676766,109750.0,109740.0,1.43769927]
[1756780172826,6.69868365,109750.0,109740.0,1.43769927]
[1756780173026,6.98629128,109750.0,109740.0,1.43769927]
[1756780173266,6.95349774,109750.0,109740.0,1.43769927]
[1756780173483,6.74986834,109750.0,109740.0,1.43769927]
[1756780173657,6.9530395,109750.0,109740.0,1.43769927]
[1756780174158,6.92955853,109750.0,109740.0,1.43769927]
[1756780174374,6.95307136,109750.0,109740.0,1.43769927]
[1756780177636,7.04374968,109750.0,109740.0,0.7556273]
[1756780177812,7.05307771,109750.0,109740.0,0.64990894]
[1756780177962,7.06734334,109750.0,109740.0,0.47688714]
[1756780178166,7.06734334,109750.0,109740.0,0.33949735]
[1756780178515,7.05307771,109750.0,109740.0,0.33949735]
[1756780179344,0.52226556,109730.0,109720.0,0.00308]
[1756780179548,1.38084096,109730.0,109720.0,0.00322128]
[1756780179668,1.38084096,109730.0,109720.0,0.00534128]
[1756780180072,0.8330297,109730.0,109720.0,0.00534128]
[1756780180310,1.12063733,109730.0,109720.0,0.00534128]
[1756780180696,1.12063733,109730.0,109720.0,0.00634128]
[1756780181318,1.40824496,109730.0,109720.0,0.00634128]
[1756780183523,1.25356496,109730.0,109720.0,0.00634128]
[1756780183720,1.40824809,109730.0,109720.0,0.00634128]
[1756780184731,1.40824717,109730.0,109720.0,0.00634128]
[1756780186117,1.47832717,109730.0,109720.0,0.00634128]
[1756780189390,1.50295452,109730.0,109720.0,0.00634128]
[1756780190464,1.59487051,109730.0,109720.0,0.00634128]
[1756780190666,1.61884,109730.0,109720.0,0.00114128]
[1756780191102,1.90644763,109730.0,109720.0,0.00114128]
[1756780191319,1.93926671,109730.0,109720.0,0.00114128]
[1756780191732,1.93926283,109730.0,109720.0,0.00114128]
[1756780193104,1.93926283,109730.0,109720.0,0.00322128]
[1756780193304,1.90644375,109730.0,109720.0,0.00322128]
[1756780193688,1.61883612,109730.0,109720.0,0.00322128]
[1756780195169,1.61883481,109730.0,109720.0,2.00322128]
[1756780195292,1.52691882,109730.0,109720.0,2.00322128]
[1756780195506,1.50982774,109730.0,109720.0,2.00322128]
[1756780195713,1.52691866,109730.0,109720.0,2.00322128]
[1756780196672,1.34826917,109730.0,109720.0,2.00534128]
[1756780196876,1.50290917,109730.0,109720.0,2.00534128]
[1756780197264,1.53572825,109730.0,109720.0,2.00534128]
[1756780197463,1.28917226,109730.0,109720.0,2.00534128]
[1756780197687,1.10629463,109730.0,109720.0,2.00534128]
[1756780198529,1.12338701,109730.0,109720.0,2.00534128]
[1756780199098,0.96874701,109730.0,109720.0,2.00534128]
[1756780199304,1.12334701,109730.0,109720.0,2.00534128]
[1756780200301,1.41095464,109730.0,109720.0,2.00534128]
[1756780202243,1.3666572,109730.0,109720.0,2.00534128]
[1756780203508,1.41097914,109730.0,109720.0,2.00534128]
[1756780203765,1.41098463,109730.0,109720.0,2.00534128]
[1756780204699,1.36666784,109730.0,109720.0,2.00534128]
[1756780204923,1.46267752,109730.0,109720.0,2.00534128]
[1756780205387,1.41099782,109730.0,109720.0,2.00534128]
[1756780206315,6.79052144,109730.0,109720.0,2.00014128]
[1756780206543,6.56826765,109730.0,109720.0,2.00014128]
[1756780207024,6.57468265,109730.0,109720.0,2.00014128]
[1756780207520,6.57468319,109730.0,109720.0,2.00014128]
[1756780209126,6.57468319,109730.0,109720.0,2.00336128]
[1756780209908,6.42008319,109730.0,109720.0,2.00336128]
[1756780210117,6.54429816,109730.0,109720.0,2.00550128]
[1756780210960,6.58101118,109730.0,109720.0,2.00550128]
[1756780211184,6.42641118,109730.0,109720.0,2.00550128]
[1756780211477,1.53958683,109730.0,109720.0,2.00550128]
[1756780211721,1.16006321,109730.0,109720.0,2.00550128]
[1756780212857,1.00550321,109730.0,109720.0,2.00550128]
[1756780213108,0.51535256,109730.0,109720.0,2.00550128]
[1756780213350,6.93342068,109730.0,109720.0,2.00014128]
[1756780213553,7.02026536,109730.0,109720.0,2.00014128]
[1756780213735,6.73265773,109730.0,109720.0,2.00014128]
[1756780213985,6.9874343,109730.0,109720.0,2.00014128]
[1756780214192,7.02027071,109730.0,109720.0,2.00014128]
[1756780214402,6.87089856,109730.0,109720.0,1.58871776]
[1756780214789,6.87389856,109730.0,109720.0,1.58871776]
[1756780215014,6.85037944,109730.0,109720.0,1.58871776]
[1756780215217,6.87089565,109730.0,109720.0,1.58871776]
[1756780215361,6.87289565,109730.0,109720.0,1.58871776]
[1756780215894,6.87089565,109730.0,109720.0,1.58871776]
[1756780216097,7.06065803,109730.0,109720.0,1.08462089]
[1756780216321,7.03375046,109730.0,109720.0,0.98620999]
[1756780216498,7.03575046,109730.0,109720.0,0.98620999]
[1756780216698,7.03875046,109730.0,109720.0,0.60884789]
[1756780217080,6.94683447,109730.0,109720.0,0.60884789]
[1756780218712,6.94683447,109730.0,109720.0,0.06855372]
[1756780218966,6.99683447,109730.0,109720.0,0.0398801]
[1756780219428,6.99683447,109730.0,109720.0,1e-08]
[1756780219643,0.5223154,109700.0,109690.0,0.00322]
[1756780219855,1.14640655,109700.0,109690.0,0.00322]
[1756780220098,1.14640655,109700.0,109690.0,0.00536]
[1756780220817,1.17381655,109700.0,109690.0,0.00536]
[1756780221026,1.17381655,109700.0,109690.0,0.00636]
[1756780221434,0.63954761,109700.0,109690.0,0.00636]
[1756780221640,0.7744054,109700.0,109690.0,0.00636]
[1756780221848,0.99207835,109700.0,109690.0,0.00636]
[1756780222067,0.7042854,109700.0,109690.0,0.00636]
[1756780222274,0.99207835,109700.0,109690.0,0.00636]
[1756780222481,0.99207835,109700.0,109690.0,0.18869202]
[1756780222699,0.99207835,109700.0,109690.0,0.00636]
[1756780224605,0.83751835,109700.0,109690.0,0.00636]
[1756780224827,0.99203835,109700.0,109690.0,0.00636]
[1756780225899,0.99203835,109700.0,109690.0,0.18869202]
[1756780226348,0.99203835,109700.0,109690.0,0.00636]
[1756780228003,1.08395434,109700.0,109690.0,0.00422]
[1756780228217,1.08395434,109700.0,109690.0,0.00636]
[1756780228667,0.92943434,109700.0,109690.0,0.00636]
[1756780228878,0.99203835,109700.0,109690.0,0.00636]
[1756780229496,1.01171018,109700.0,109690.0,0.00636]
[1756780229708,0.72391723,109700.0,109690.0,0.00636]
[1756780229917,1.01171018,109700.0,109690.0,0.00422]
[1756780230122,1.01171018,109700.0,109690.0,0.001]
[1756780230344,1.01171018,109700.0,109690.0,0.00314]
[1756780230609,1.01171018,109700.0,109690.0,0.00636]
[1756780234582,1.01171018,109700.0,109690.0,0.00422]
[1756780236625,0.72391723,109700.0,109690.0,0.00422]
[1756780236833,1.01171018,109700.0,109690.0,0.00422]
[1756780237334,0.72391723,109700.0,109690.0,0.00629]
[1756780237578,1.01171018,109700.0,109690.0,0.00629]
[1756780238288,0.85719018,109700.0,109690.0,0.00629]
[1756780238644,1.01167018,109700.0,109690.0,0.00629]
[1756780239611,1.01167018,109700.0,109690.0,0.001]
[1756780240617,1.10358617,109700.0,109690.0,0.001]
[1756780241129,1.01167018,109700.0,109690.0,0.001]
[1756780241886,1.17370617,109700.0,109690.0,0.001]
[1756780243978,1.19080774,109700.0,109690.0,0.001]
[1756780244125,1.19080774,109700.0,109690.0,0.00614]
[1756780244548,1.21542142,109700.0,109690.0,0.00407]
[1756780244928,1.19080774,109700.0,109690.0,0.001]
[1756780246287,1.19080774,109700.0,109690.0,0.00407]
[1756780246500,1.19080948,109700.0,109690.0,0.001]
[1756780246708,1.21542316,109700.0,109690.0,0.001]
[1756780246924,1.21542316,109700.0,109690.0,0.00407]
[1756780254040,6.30733915,109700.0,109690.0,0.001]
[1756780254300,6.37150764,109700.0,109690.0,0.001]
[1756780254552,6.35926581,109700.0,109690.0,0.001]
[1756780255312,0.18234865,109680.0,109670.0,0.00307]
[1756780255542,0.64425343,109680.0,109670.0,0.00307]
[1756780255777,0.64425343,109680.0,109670.0,0.00514]
[1756780256020,0.67166643,109680.0,109670.0,0.00514]
[1756780256532,0.67175215,109680.0,109670.0,0.00514]
[1756780258495,0.67175215,109680.0,109670.0,0.00614]
[1756780258955,1.55349708,109680.0,109670.0,0.001]
[1756780259177,1.62773262,109680.0,109670.0,0.001]
[1756780260267,0.18236527,109670.0,109660.0,0.00307]
[1756780260489,0.3564371,109670.0,109660.0,0.00307]
[1756780260722,0.64423005,109670.0,109660.0,0.00514]
[1756780260934,0.67164705,109670.0,109660.0,0.00514]
[1756780261593,0.67164705,109670.0,109660.0,0.00307]
[1756780262261,0.67164705,109670.0,109660.0,0.00514]
[1756780262967,0.67164705,109670.0,109660.0,0.00307]
[1756780263182,0.67164705,109670.0,109660.0,0.00514]
[1756780263320,0.69561654,109670.0,109660.0,0.00514]
[1756780263742,0.69561654,109670.0,109660.0,0.00307]
[1756780264174,0.71853109,109670.0,109660.0,0.00514]
[1756780265074,0.81044708,109670.0,109660.0,0.00307]
[1756780265246,0.18239854,109650.0,109640.0,0.0004]
[1756780265421,0.33679854,109650.0,109640.0,0.0004]
[1756780265637,0.11701155,109650.0,109640.0,0.00255]
[1756780265842,0.11701155,109650.0,109640.0,0.00549]
[1756780266266,0.29941009,109650.0,109640.0,0.00549]
[1756780266467,0.36481744,109650.0,109640.0,0.00849]
[1756780267399,0.24780589,109650.0,109640.0,0.19090517]
[1756780267626,0.40220589,109650.0,109640.0,0.19090517]
[1756780269963,0.40220589,109650.0,109640.0,0.00849]
[1756780270373,0.40220589,109650.0,109640.0,0.19090517]
[1756780271392,0.40220589,109650.0,109640.0,0.00849]
[1756780272262,0.24780589,109650.0,109640.0,0.00849]
[1756780272519,0.40220589,109650.0,109640.0,0.00849]
[1756780272804,0.21464396,109650.0,109640.0,0.00849]
[1756780273011,0.24206296,109650.0,109640.0,0.19090517]
[1756780273851,0.027419,109650.0,109640.0,0.19090517]
[1756780274063,0.181819,109650.0,109640.0,0.19090517]
[1756780274247,0.027419,109650.0,109640.0,0.47869812]
[1756780275136,0.027419,109650.0,109640.0,0.72501411]
[1756780275344,0.22282513,109670.0,109660.0,0.1823819]
[1756780275557,0.70806687,109670.0,109660.0,0.1823819]
[1756780275762,0.70806687,109670.0,109660.0,0.1874719]
[1756780275983,0.39875447,109670.0,109660.0,0.1874719]
[1756780276217,0.55311447,109670.0,109660.0,0.1874719]
[1756780277577,0.05875447,109670.0,109660.0,0.1874719]
[1756780277785,0.027413,109670.0,109660.0,0.72154084]
[1756780278408,0.027413,109670.0,109660.0,0.43374789]
[1756780278824,0.027413,109670.0,109660.0,0.72154084]
[1756780279545,0.027413,109670.0,109660.0,1.00923531]
[1756780280563,8.572e-05,109680.0,109670.0,0.18236527]
[1756780280767,8.572e-05,109680.0,109670.0,0.56939453]
[1756780280962,8.572e-05,109680.0,109670.0,0.56711497]
[1756780281544,8.572e-05,109680.0,109670.0,0.63723497]
[1756780282208,8.572e-05,109680.0,109670.0,0.63823497]
[1756780282826,8.572e-05,109680.0,109670.0,0.79255497]
[1756780287595,8.572e-05,109680.0,109670.0,1.1012375]
[1756780288224,8.572e-05,109680.0,109670.0,1.1011975]
[1756780289013,0.47004307,109710.0,109690.0,0.18233202]
[1756780289213,0.49744607,109710.0,109700.0,0.00227894]
[1756780289662,0.49744607,109710.0,109690.0,0.56540227]
[1756780289884,0.1823154,109700.0,109690.0,0.09532654]
[1756780290043,0.47005911,109700.0,109690.0,0.24960654]
[1756780290448,0.47005911,109700.0,109690.0,0.43193856]
[1756780291470,0.47205911,109700.0,109690.0,0.43193856]
[1756780291651,0.1853154,109700.0,109690.0,0.24666654]
[1756780291857,0.47305911,109700.0,109690.0,0.28856566]
[1756780292352,0.47305911,109700.0,109690.0,0.47383768]
[1756780292797,0.1853154,109700.0,109690.0,0.47598768]
[1756780293003,0.47305911,109700.0,109690.0,0.47598768]
[1756780293203,0.47305911,109700.0,109690.0,0.31955768]
[1756780293401,0.47305911,109700.0,109690.0,0.47383768]
[1756780293598,0.47305911,109700.0,109690.0,0.47598768]
[1756780294211,0.47305911,109700.0,109690.0,0.47379768]
[1756780294412,0.1853154,109700.0,109690.0,0.47379768]
[1756780294880,0.1853154,109700.0,109690.0,0.13722566]
[1756780295146,0.47305911,109700.0,109690.0,0.28852566]
[1756780295965,0.76080282,109700.0,109690.0,0.00047055]
[1756780296714,0.47305911,109700.0,109690.0,0.00047055]
[1756780296930,0.76080282,109700.0,109690.0,0.00047055]
[1756780297100,0.47305911,109700.0,109690.0,0.00047055]
[1756780297305,0.1853154,109700.0,109690.0,0.00047055]
[1756780297518,0.76080282,109700.0,109690.0,0.00047055]
[1756780297726,0.78820982,109700.0,109690.0,0.00047055]
[1756780302552,0.80784803,109700.0,109690.0,0.00047055]
[1756780302669,1.30988402,109700.0,109690.0,0.00047055]
[1756780302890,1.32693725,109700.0,109690.0,0.00047055]
[1756780303103,1.62320782,109700.0,109690.0,0.00047055]
[1756780303307,1.64717731,109700.0,109690.0,0.00047055]
[1756780303522,1.7390933,109700.0,109690.0,0.00047055]
[1756780303736,6.80288451,109700.0,109690.0,0.00047055]
[1756780304357,6.7783281,109700.0,109690.0,0.00047055]
[1756780305197,6.68641211,109700.0,109690.0,0.00047055]
[1756780306804,6.84061211,109700.0,109690.0,0.00047055]
[1756780308196,6.80863363,109700.0,109690.0,0.00047055]
[1756780308410,6.8652148,109700.0,109690.0,0.00047055]
[1756780308856,0.82381418,109700.0,109690.0,0.00369055]
[1756780309064,0.88651915,109700.0,109690.0,0.00565055]
[1756780309271,1.14968671,109700.0,109690.0,0.00565055]
[1756780309489,1.48968671,109700.0,109690.0,0.00369055]
[1756780310746,1.48968671,109700.0,109690.0,0.00565055]
[1756780311427,1.48968671,109700.0,109690.0,0.00047055]
[1756780312565,1.48968671,109700.0,109690.0,0.00369055]
[1756780315787,1.33548671,109700.0,109690.0,0.00369055]
[1756780316141,1.49044671,109700.0,109690.0,0.00369055]
[1756780316355,1.49044671,109700.0,109690.0,0.00047055]
[1756780317572,1.93914671,109700.0,109690.0,0.00369055]
[1756780317830,1.93914671,109700.0,109690.0,0.00047055]
[1756780318236,2.22689042,109700.0,109690.0,0.00047055]
[1756780318623,2.22688562,109700.0,109690.0,0.00047055]
[1756780319212,1.36365449,109700.0,109690.0,0.00047055]
[1756780319409,2.22688562,109700.0,109690.0,0.00047055]
[1756780320566,2.31880161,109700.0,109690.0,0.00047055]
[1756780320775,2.41351888,109700.0,109690.0,0.00047055]
[1756780320997,7.3544393,109700.0,109690.0,0.00047055]
[1756780321222,7.33397342,109700.0,109690.0,0.00047055]
[1756780321423,7.33397843,109700.0,109690.0,0.00047055]
[1756780323077,7.33398112,109700.0,109690.0,0.00047055]
[1756780323391,6.88528112,109700.0,109690.0,0.00047055]
[1756780323831,6.97719711,109700.0,109690.0,0.00047055]
[1756780325282,6.95262096,109700.0,109690.0,0.00047055]
[1756780325495,7.03425774,109700.0,109690.0,0.00047055]
[1756780325680,7.34676864,109700.0,109690.0,1e-08]
[1756780325884,7.36317883,109700.0,109690.0,1e-08]
[1756780328003,7.36319289,109700.0,109690.0,1e-08]
[1756780331302,7.36219289,109700.0,109690.0,1e-08]
[1756780331601,7.93968031,109700.0,109690.0,1e-08]
[1756780331773,7.96491312,109700.0,109690.0,1e-08]
[1756780331981,7.96991312,109700.0,109690.0,1e-08]
[1756780332182,6.14753487,109700.0,109690.0,1e-08]
[1756780332384,7.69780432,109700.0,109690.0,1e-08]
[1756780332598,7.85236432,109700.0,109690.0,1e-08]
[1756780332757,6.83457319,109700.0,109690.0,1e-08]
[1756780333009,6.98933319,109700.0,109690.0,0.00315001]
[1756780333457,6.98933319,109700.0,109690.0,1e-08]
[1756780334623,7.08124918,109700.0,109690.0,1e-08]
[1756780334831,7.08125068,109700.0,109690.0,1e-08]
[1756780336188,7.08117068,109700.0,109690.0,1e-08]
[1756780338585,6.83457258,109700.0,109690.0,1e-08]
[1756780338792,6.98925258,109700.0,109690.0,1e-08]
[1756780339927,6.78457258,109700.0,109690.0,0.00522001]
[1756780340129,6.66032982,109700.0,109690.0,0.00522001]
[1756780340500,6.91528309,109700.0,109690.0,0.00522001]
[1756780340698,6.86528309,109700.0,109690.0,0.00522001]
[1756780341154,7.03999151,109700.0,109690.0,0.00522001]
[1756780341303,7.00719908,109700.0,109690.0,0.00522001]
[1756780341502,6.33989224,109700.0,109690.0,0.00522001]
[1756780341705,6.25246218,109700.0,109690.0,0.00522001]
[1756780344451,6.25242218,109700.0,109690.0,0.00522001]
[1756780345689,1.09141758,109700.0,109690.0,0.00522001]
[1756780345884,1.08322928,109700.0,109690.0,0.00522001]
[1756780346090,1.23778928,109700.0,109690.0,0.00522001]
[1756780346740,1.22878928,109700.0,109690.0,0.00522001]
[1756780346924,1.22878928,109700.0,109690.0,0.00315001]
[1756780347130,1.25675877,109700.0,109690.0,1e-08]
[1756780347331,6.25675877,109700.0,109690.0,1e-08]
[1756780347550,6.58442969,109700.0,109690.0,1e-08]